[Event "Mitropa Cup Women 2024"]
[Site "Apolda"]
[Date "2024.02.20"]
[Round "6.2"]
[White "Hapala, Elisabeth"]
[Black "Demeter, Dorina"]
[Result "1/2-1/2"]
[ECO "C60"]
[WhiteElo "2001"]
[BlackElo "2271"]
[Annotator "TA"]
[PlyCount "215"]
[EventDate "2024.02.15"]
[EventType "team-tourn"]
[EventCountry "GER"]
[SourceTitle "playchess.com"]
[Source "ChessBase"]
[SourceQuality "1"]
[WhiteTeam "Austria"]
[BlackTeam "Hungary"]
[WhiteTeamCountry "AUT"]
[BlackTeamCountry "HUN"]
[TimeControl "40/5400+30:1800+30"]

{[%evp 14,214,28,29,37,20,26,16,41,-4,17,-96,-28,-6,-1,0,3,1,-12,-20,-19,-107,0,0,0,-3,-6,-6,0,0,27,8,2,0,26,-19,-5,-11,0,-22,0,-49,-16,-20,0,0,0,0,0,0,0,0,0,-30,-31,-30,-28,-36,-5,-71,-80,-85,-64,-102,-106,-107,-116,-111,-107,-104,-87,-113,-112,-133,-133,-137,-126,-120,-110,-117,-115,-122,-108,-112,-104,-130,-94,-128,-94,-112,-94,-94,-94,-112,-94,-124,-124,-130,-124,-124,-85,-124,-124,-124,-131,-167,-104,-104,-104,-104,-86,-86,-86,-95,-86,-86,-86,-86,-86,-104,0,-86,0,0,0,0,0,0,8,8,8,8,8,8,8,7,7,7,7,7,7,7,7,7,7,7,7,7,7,7,7,0,8,7,7,7,7,7,8,8,8,8,8,8,8,8,8,8,8,8,8,0,8,8,8,8,8,0,0,0,0,0,0,0,0,0,0,0,0,0,0,0,0,0,0,0,0,0,0,0,0,0,0]} 1. e4 {[%emt 0:00:01]} e5 {[%emt 0:00:05]} 2. Nf3 {[%emt 0:00:04]} Nc6 {[%emt 0:00:05]} 3. Bb5 {[%emt 0:00:05][%cal Bf1b5,Bb5a4,Ba4b3][%mdl 32]} Nge7 {[%emt 0:00:06]} 4. O-O {[%emt 0:05:11]} g6 {[%emt 0:02:44]} 5. c3 {[%emt 0:03:13][%cal Bc2c3,Bc3d4,Bd4d5][%mdl 32]} a6 {[%emt 0:02:15]} 6. Ba4 {[%emt 0:01:58]} Bg7 {[%emt 0:00:29]} 7. d4 {[%emt 0:00:08]} exd4 {[%emt 0:01:00]} 8. cxd4 {[%emt 0:00:06]} b5 {[%emt 0:02:52]} 9. Bb3 {[%emt 0:03:20]} O-O {[%emt 0:00:07]} 10. d5 {[%emt 0:07:13]} Na5 {[%emt 0:02:50]} 11. Bc2 {[%emt 0:00:16]} d6 {[%emt 0:03:54]} 12. Bd2 {[%emt 0:24:57]} (12. Nc3 $11) 12... Nc4 {[%emt 0:05:59]} (12... Bxb2 $17 13. Bc3 Bxc3 (13... Bxa1 14. Bxa1 f6 15. a4 $19) 14. Nxc3 c5) 13. Bc3 $11 {[%emt 0:00:06]} Nxb2 {[%emt 0:00:51]} 14. Qc1 {[%emt 0:00:05]} Nc4 {[%emt 0:01:18]} 15. Bxg7 {[%emt 0:00:14]} Kxg7 {[%emt 0:00:06]} 16. a4 {[%emt 0:00:18]} Bg4 {[%emt 0:10:13]} 17. Nd4 {[%emt 0:04:17] [#]} (17. Nfd2 $11) 17... Bd7 {[%emt 0:01:38]} (17... c5 $1 $17 {[%cal Rc5d4]} 18. Nb3 Rc8) 18. axb5 {[%emt 0:06:46]} axb5 {[%emt 0:02:05]} 19. Rxa8 {[%emt 0:00:12]} Qxa8 {[%emt 0:00:03]} 20. Bd3 {[%emt 0:00:14]} Qa4 {[%emt 0:19:19]} 21. Nc3 {[%emt 0:07:11]} Qb4 {[%emt 0:01:20]} 22. Ndxb5 {[%emt 0:09:38]} Ne5 {[%emt 0:03:55]} 23. Be2 {[%emt 0:03:55]} Rb8 {[%emt 0:02:12]} 24. Na3 {[%emt 0:03:52]} Ra8 {[%emt 0:02:24]} 25. Nab1 {[%emt 0:00:43]} Ng8 {[%emt 0:17:14]} 26. Nd2 {[%emt 0:05:21]} Ra5 {[%emt 0:02:01]} 27. Ndb1 {[%emt 0:03:26]} (27. h3 $11) 27... Nf6 {[%emt 0:00:30]} (27... f5 $5 28. exf5 Bxf5 $11) 28. Qe3 {[%emt 0:00:26]} Rc5 {[%emt 0:01:50]} 29. h3 {[%emt 0:01:28] Und jetzt f4 wäre schön.} Ra5 {[%emt 0:06:29]} 30. f4 {[%emt 0:05:13]} Nc4 {[%emt 0:00:17]} 31. Qd4 {[%emt 0:00:33]} Qc5 {[%emt 0:00:38]} 32. Qxc5 {[%emt 0:00:51]} Rxc5 {[%emt 0:00:02]} 33. e5 {[%emt 0:02:13]} dxe5 {[%emt 0:00:20]} 34. Bxc4 {[%emt 0:00:09]} Rxc4 {[%emt 0:00:08]} 35. fxe5 {[%emt 0:00:03]} Ne4 {[%emt 0:00:36]} 36. Ne2 {[%emt 0:02:22]} (36. e6 $11 {hält das Gleichgewicht.} fxe6 37. Nxe4 Rxe4 38. Rc1) 36... Rc5 $17 {[%emt 0:01:57]} 37. Rd1 {[%emt 0:00:11]} Bb5 {[%emt 0:00:49]} 38. Nd4 {[%emt 0:02:09] [#]} Bc4 $1 {[%emt 0:06:56] Es drohte Nb3} (38... Rxd5 39. Nf5+ gxf5 40. Rxd5 $16) 39. d6 {[%emt 0:00:51]} cxd6 {[%emt 0:00:23]} (39... Rxe5 $2 {zu gefräßig.} 40. d7 Rd5 41. Ne6+ (41. Nf5+ Rxf5 42. d8=Q Nf6 $18) 41... fxe6 42. Rxd5 (42. d8=R c5 $11) (42. d8=Q Rxd8 43. Rxd8 Nc5 $14) 42... Bxd5 43. d8=Q $18 (43. d8=R c5 $11)) 40. exd6 {[%emt 0:00:01]} Nxd6 {[%emt 0:00:55]} 41. Nd2 {[%emt 0:03:37]} Bd5 {[%emt 0:11:28]} 42. N2f3 {[%emt 0:00:12]} Ne4 {[%emt 0:02:47]} 43. Kh2 {[%emt 0:02:52]} Ra5 {[%emt 0:00:24]} 44. Ne2 {[%emt 0:09:46]} Nf2 {[%emt 0:06:33]} 45. Rf1 {[%emt 0:00:32]} Bxf3 {[%emt 0:00:36]} 46. Rxf2 {[%emt 0:00:26][%mdl 4096] Endspiel. KRB-KRN} Be4 {[%emt 0:00:37]} 47. Nd4 {[%emt 0:03:10]} Rd5 {[%emt 0:01:46]} 48. Nf3 {[%emt 0:01:27]} h6 {[%emt 0:00:27]} 49. Re2 {[%emt 0:00:29]} f5 {[%emt 0:00:50]} 50. Kg3 {[%emt 0:05:36]} Kf6 {[%emt 0:00:54]} 51. Rb2 {[%emt 0:00:30]} Rd6 {[%emt 0:00:31] Verhindert Rb6.} 52. Ra2 {[%emt 0:01:33]} Rc6 {[%emt 0:02:04]} 53. Rb2 {[%emt 0:00:11]} Ra6 {[%emt 0:03:31]} 54. Rd2 {[%emt 0:00:21]} g5 {[%emt 0:00:58]} 55. Rb2 {[%emt 0:00:24]} h5 {[%emt 0:01:03]} 56. Kf2 {[%emt 0:00:18]} Rd6 {[%emt 0:01:30]} 57. Ra2 {[%emt 0:01:19]} h4 {[%emt 0:00:36]} 58. Rb2 {[%emt 0:00:55]} Ra6 {[%emt 0:00:22]} 59. Rd2 {[%emt 0:00:18]} Bxf3 {[%emt 0:00:48]} (59... Rc6 $19 60. Rd4 Rc2+ 61. Kg1 Rc3) 60. Kxf3 $19 {[%emt 0:00:07] KR-KR} Ra3+ {[%emt 0:00:05]} 61. Kf2 {[%emt 0:00:04]} Ke5 {[%emt 0:00:16]} 62. Rb2 {[%emt 0:00:11]} Rd3 {[%emt 0:00:32]} 63. Ra2 {[%emt 0:00:58]} Ke4 {[%emt 0:00:12]} 64. Ra4+ {[%emt 0:00:46]} Rd4 {[%emt 0:00:03]} 65. Ra2 {[%emt 0:00:14]} Rc4 {[%emt 0:01:20]} 66. Rb2 {[%emt 0:00:19]} Kd3 {[%emt 0:00:27]} (66... g4 $17) 67. Rb3+ {[%emt 0:01:37]} (67. Rb5 $1 $11 {bleibt in der Remisbreite.}) 67... Kd2 {[%emt 0:02:24]} ({Besser ist} 67... Kd4 $17) 68. Rb2+ $11 {[%emt 0:01:01] Die Stellung ist ausgeglichen.} Rc2 {[%emt 0:01:10]} 69. Rb5 {[%emt 0:00:11]} Kd1+ {[%emt 0:01:16]} 70. Kf1 {[%emt 0:00:43]} Kd2 {[%emt 0:00:28]} 71. Rxf5 {[%emt 0:00:43]} Ke3 {[%emt 0:00:16][%cal Rc2c1] Lässt Rf2 nicht zu} 72. Kg1 {[%emt 0:01:10]} (72. Rxg5 $2 Rc1#) 72... g4 {[%emt 0:00:43]} 73. hxg4 {[%emt 0:00:05]} Rc4 {[%emt 0:00:16]} 74. g5 {[%emt 0:01:42]} Rg4 {[%emt 0:00:14]} 75. Kh2 {[%emt 0:00:19] Droht Kh3 und aus.} Ke4 {[%emt 0:00:08]} 76. Rf2 {[%emt 0:02:49] Kh3 wäre nun fies.} Rxg5 {[%emt 0:00:58]} 77. Kh3 {[%emt 0:00:06]} Rh5 {[%emt 0:00:37]} 78. Ra2 {[%emt 0:01:48]} Kf5 {[%emt 0:00:43]} 79. Ra4 {[%emt 0:00:24]} Kf6 {[%emt 0:00:31]} 80. Rf4+ {[%emt 0:00:56]} Kg6 {[%emt 0:00:19]} 81. Rg4+ {[%emt 0:00:06]} Kf6 {[%emt 0:00:02]} 82. Rxh4 {[%emt 0:00:12]} Ra5 {[%emt 0:00:06]} 83. Rb4 {[%emt 0:00:22]} Kg5 {[%emt 0:00:16]} 84. Rb8 {[%emt 0:00:23]} Ra3+ {[%emt 0:00:18]} 85. g3 {[%emt 0:00:04]} Rc3 {[%emt 0:00:10]} 86. Ra8 {[%emt 0:00:07]} Rb3 {[%emt 0:00:03]} 87. Ra5+ {[%emt 0:00:05]} Kg6 {[%emt 0:00:08]} 88. Kh4 {[%emt 0:00:10]} Rb4+ {[%emt 0:00:22]} 89. g4 {[%emt 0:00:03]} Rb6 {[%emt 0:00:07]} 90. Ra8 {[%emt 0:00:04]} Rc6 {[%emt 0:00:11]} 91. Rg8+ {[%emt 0:00:06]} Kh7 {[%emt 0:00:08]} 92. Rg5 {[%emt 0:00:12]} Kh6 {[%emt 0:00:17]} 93. Ra5 {[%emt 0:00:25]} Kg6 {[%emt 0:00:09]} 94. Re5 {[%emt 0:00:29]} Ra6 {[%emt 0:00:05]} 95. Kg3 {[%emt 0:00:38]} Ra3+ {[%emt 0:00:08]} 96. Kf4 {[%emt 0:00:04]} Ra4+ {[%emt 0:00:04]} 97. Re4 {[%emt 0:00:09]} Rxe4+ {[%emt 0:00:12]} 98. Kxe4 {[%emt 0:00:02] KP-K} Kg5 {[%emt 0:00:05]} 99. Kf3 {[%emt 0:00:04]} Kg6 {[%emt 0:00:03]} 100. Kf4 {[%emt 0:00:04]} Kf6 {[%emt 0:00:01]} 101. g5+ {[%emt 0:00:05]} Kg6 {[%emt 0:00:01]} 102. Kg4 {[%emt 0:00:05]} Kg7 {[%emt 0:00:01]} 103. Kf5 {[%emt 0:00:05]} Kf7 {[%emt 0:00:02]} 104. g6+ {[%emt 0:00:06]} Kg7 {[%emt 0:00:01]} 105. Kg5 {[%emt 0:00:04]} Kg8 {[%emt 0:00:09]} 106. Kf6 {[%emt 0:00:03] Droht Matt per g7.} (106. Kf5 $5) 106... Kf8 {[%emt 0:00:02]} 107. g7+ {[%emt 0:00:04]} Kg8 {[%emt 0:00:01]} 108. Kg6 {[%emt 0:10:40] Gewichteter Fehlerwert: Weiß=0.18 (sehr präzise) /Schwarz=0.15 (sehr präzise) .  Fehler:       	Weiß=5     	Schwarz=5     Ungenau:       	Weiß=7     	Schwarz=5     OK:         	Weiß=35    	Schwarz=34    Bester:       	Weiß=2     	Schwarz=5     Stark:        	---       	Schwarz=1} 1/2-1/2

[Event "Mitropa Cup Women 2024"]
[Site "Apolda"]
[Date "2024.02.20"]
[Round "6.3"]
[White "Terbe, Zsuzsanna"]
[Black "Mayrhuber, Nikola"]
[Result "1-0"]
[ECO "E51"]
[WhiteElo "2170"]
[BlackElo "2009"]
[Annotator "RC"]
[PlyCount "69"]
[EventDate "2024.02.15"]
[EventType "team-tourn"]
[EventCountry "GER"]
[SourceTitle "playchess.com"]
[Source "ChessBase"]
[SourceQuality "1"]
[WhiteTeam "Hungary"]
[BlackTeam "Austria"]
[WhiteTeamCountry "HUN"]
[BlackTeamCountry "AUT"]
[TimeControl "40/5400+30:1800+30"]

1. d4 {[%emt 0:00:03]} Nf6 {[%emt 0:00:06]} 2. c4 {[%emt 0:00:09]} e6 {[%emt 0:00:03]} 3. Nc3 {[%emt 0:00:05]} Bb4 {[%emt 0:00:08]} 4. e3 {[%emt 0:00:13]} O-O {[%emt 0:00:14]} 5. Bd2 {[%emt 0:00:08]} d5 {[%emt 0:00:17]} 6. Nf3 {[%emt 0:00:19]} b6 {[%emt 0:00:07]} 7. cxd5 {[%emt 0:00:09]} exd5 {[%emt 0:00:03]} 8. Rc1 {[%emt 0:00:08]} Bb7 {[%emt 0:00:12]} 9. Bd3 {[%emt 0:00:27]} Be7 {[%emt 0:00:43]} 10. O-O {[%emt 0:01:16]} c5 {[%emt 0:00:40]} 11. Be1 {[%emt 0:01:23]} Nc6 {[%emt 0:01:38]} 12. Ne5 {[%emt 0:00:23]} Bd6 {[%emt 0:01:19]} 13. f4 {[%emt 0:01:27]} cxd4 {[%emt 0:00:58]} 14. Nxc6 {[%emt 0:06:12]} Bxc6 {[%emt 0:00:08]} 15. Ne2 {[%emt 0:00:54]} Bd7 {[%emt 0:00:35]} 16. Nxd4 {[%emt 0:00:40]} Qe7 {[%emt 0:02:42]} 17. Qd2 {[%emt 0:20:09]} Rfe8 {[%emt 0:19:06]} 18. Rf3 {[%emt 0:05:17]} Bg4 {[%emt 0:06:39]} 19. Rg3 {[%emt 0:00:41]} Bc5 {[%emt 0:10:28]} 20. Bf2 {[%emt 0:12:57]} Bxd4 {[%emt 0:17:09]} 21. exd4 {[%emt 0:00:10]} Qd7 {[%emt 0:01:07]} 22. Qb4 {[%emt 0:21:36]} Rac8 {[%emt 0:09:24]} 23. Rc3 {[%emt 0:05:18]} Rxc3 {[%emt 0:07:47]} 24. bxc3 {[%emt 0:01:39]} Be2 {[%emt 0:00:17]} 25. Bb1 {[%emt 0:03:55]} Bc4 {[%emt 0:00:48]} 26. h3 {[%emt 0:06:07]} Nh5 {[%emt 0:04:31]} 27. Rg4 {[%emt 0:01:33]} Re2 {[%emt 0:02:31]} 28. a4 {[%emt 0:04:00]} Nf6 {[%emt 0:08:44]} 29. Rg5 {[%emt 0:01:24]} Ne8 {[%emt 0:03:49]} 30. Re5 {[%emt 0:01:36]} f6 {[%emt 0:00:17]} 31. Bf5 {[%emt 0:01:36]} Qc6 {[%emt 0:02:27]} 32. Rxe2 {[%emt 0:01:46]} Bxe2 {[%emt 0:00:03]} 33. Qe7 {[%emt 0:00:04]} h5 {[%emt 0:01:25]} 34. Qxe2 {[%emt 0:00:24]} Nd6 {[%emt 0:00:28]} 35. Qe6+ {[%emt 0:01:36]} 1-0

[Event "Mitropa Cup Women 2024"]
[Site "Apolda"]
[Date "2024.02.20"]
[Round "6.4"]
[White "Deak-Sala, Emilia"]
[Black "Ivan-Gal, Hanna Krisztina"]
[Result "1/2-1/2"]
[ECO "B49"]
[WhiteElo "1843"]
[BlackElo "2191"]
[Annotator "RC"]
[PlyCount "94"]
[EventDate "2024.02.15"]
[EventType "team-tourn"]
[EventCountry "GER"]
[SourceTitle "playchess.com"]
[Source "ChessBase"]
[SourceQuality "1"]
[WhiteTeam "Austria"]
[BlackTeam "Hungary"]
[WhiteTeamCountry "AUT"]
[BlackTeamCountry "HUN"]
[TimeControl "40/5400+30:1800+30"]

1. e4 {[%emt 0:00:03]} c5 {[%emt 0:00:07]} 2. Nc3 {[%emt 0:00:06]} e6 {[%emt 0:00:08]} 3. Nge2 {[%emt 0:00:03]} Nc6 {[%emt 0:00:11]} 4. d4 {[%emt 0:00:05]} cxd4 {[%emt 0:00:07]} 5. Nxd4 {[%emt 0:00:03]} Qc7 {[%emt 0:00:10]} 6. Be2 {[%emt 0:00:15]} a6 {[%emt 0:00:42]} 7. O-O {[%emt 0:00:09]} Nf6 {[%emt 0:01:50]} 8. Be3 {[%emt 0:00:08]} b5 {[%emt 0:02:10]} 9. a3 {[%emt 0:06:20]} Bb7 {[%emt 0:00:31]} 10. Nxc6 {[%emt 0:05:22]} Bxc6 {[%emt 0:04:54]} 11. Bd3 {[%emt 0:02:39]} Qb7 {[%emt 0:08:20]} 12. f3 {[%emt 0:04:56]} Be7 {[%emt 0:07:57]} 13. Qe1 {[%emt 0:11:55]} d6 {[%emt 0:12:25]} 14. Ne2 {[%emt 0:04:05]} e5 {[%emt 0:02:00]} 15. Nc3 {[%emt 0:15:43]} O-O {[%emt 0:13:59]} 16. Bg5 {[%emt 0:05:24]} a5 {[%emt 0:10:42]} 17. Rd1 {[%emt 0:07:25]} b4 {[%emt 0:02:12]} 18. axb4 {[%emt 0:00:56]} axb4 {[%emt 0:00:15]} 19. Bxf6 {[%emt 0:01:22]} Bxf6 {[%emt 0:00:08]} 20. Nd5 {[%emt 0:00:05]} Bxd5 {[%emt 0:01:12]} 21. exd5 {[%emt 0:00:07]} b3 {[%emt 0:01:30]} 22. c3 {[%emt 0:07:05]} g6 {[%emt 0:02:09]} 23. Bb1 {[%emt 0:04:43]} Ra5 {[%emt 0:05:53]} 24. Qd2 {[%emt 0:01:02]} Rc8 {[%emt 0:02:02]} 25. Kh1 {[%emt 0:04:12]} Rcc5 {[%emt 0:03:15]} 26. Be4 {[%emt 0:00:53]} Be7 {[%emt 0:01:50]} 27. g4 {[%emt 0:01:33]} Kg7 {[%emt 0:05:59]} 28. f4 {[%emt 0:02:11]} Ra4 {[%emt 0:04:21]} 29. Qg2 {[%emt 0:01:58]} Rcc4 {[%emt 0:01:29]} 30. Rde1 {[%emt 0:00:49]} Bh4 {[%emt 0:02:41]} 31. Re2 {[%emt 0:05:32]} exf4 {[%emt 0:00:06]} 32. Rxf4 {[%emt 0:01:28]} Bf6 {[%emt 0:00:42]} 33. Rf1 {[%emt 0:04:15]} Be5 {[%emt 0:00:23]} 34. Qf3 {[%emt 0:00:56]} f6 {[%emt 0:01:19]} 35. Qd3 {[%emt 0:01:32]} Rc5 {[%emt 0:01:05]} 36. Bf3 {[%emt 0:00:39]} Qa6 {[%emt 0:01:06]} 37. Qd1 {[%emt 0:01:13]} Qb5 {[%emt 0:01:00]} 38. Ref2 {[%emt 0:01:37]} Qb7 {[%emt 0:00:49]} 39. Qd3 {[%emt 0:00:23]} Ra2 {[%emt 0:00:40]} 40. Re2 {[%emt 0:00:36]} Qb5 {[%emt 0:00:37]} 41. Qxb5 {[%emt 0:08:57]} Rxb5 {[%emt 0:00:04]} 42. Kg2 {[%emt 0:00:37]} Kf7 {[%emt 0:08:44]} 43. Rd1 {[%emt 0:01:32]} Ke7 {[%emt 0:02:43]} 44. Rf1 {[%emt 0:06:19]} Kd7 {[%emt 0:06:42]} 45. Rd1 {[%emt 0:01:54]} Rba5 {[%emt 0:02:15]} 46. Rf2 {[%emt 0:02:56]} Kc7 {[%emt 0:04:19]} 47. Re2 {[%emt 0:00:51]} Kb6 {[%emt 0:01:11]} 1/2-1/2

[Event "Mitropa Cup Women 2024"]
[Site "Apolda"]
[Date "2024.02.20"]
[Round "6.5"]
[White "Hakimifard, Ghazal"]
[Black "Brunello, Marina"]
[Result "0-1"]
[ECO "B15"]
[WhiteElo "2243"]
[BlackElo "2345"]
[Annotator "TA"]
[PlyCount "94"]
[EventDate "2024.02.15"]
[EventType "team-tourn"]
[EventCountry "GER"]
[SourceTitle "playchess.com"]
[Source "ChessBase"]
[SourceQuality "1"]
[WhiteTeam "Switzerland"]
[BlackTeam "Italy"]
[WhiteTeamCountry "SUI"]
[BlackTeamCountry "ITA"]
[TimeControl "40/5400+30:1800+30"]

{[%evp 16,94,22,23,27,24,31,24,23,-18,-10,-41,-32,-36,-12,-35,0,-35,0,-92,-67,-114,-109,-121,-110,-253,-243,-283,-279,-278,-279,-275,-288,-242,-247,-296,-232,-269,-262,-270,-248,-255,-239,-382,-334,-380,-372,-391,-366,-595,-569,-577,-529,-950,-590,-791,-777,-1100,-1013,-1156,-1127,-1033,-587,-1785,-600,-602,-601,-760,-708,-783,-700,-808,-761,-765,-773,-1091,-990,-833,-825,-896,-898]} 1. e4 {[%emt 1:31:00]} c6 {[%emt 0:00:08]} 2. d4 {[%emt 0:00:00]} d5 {[%emt 1:31:22]} 3. Nd2 {[%emt 0:00:00]} dxe4 {[%emt 0:00:00]} 4. Nxe4 {[%emt 0:00:00]} Nf6 {[%emt 0:00:00]} 5. Nxf6+ {[%emt 0:00:00]} exf6 {[%emt 0:00:00]} 6. c3 {[%emt 0:00:00]} Bd6 {[%emt 0:00:00]} 7. Bd3 {[%emt 0:00:00]} O-O {[%emt 0:00:00]} 8. Be3 {[%emt 0:00:00]} Re8 {[%emt 0:00:00]} 9. Qc2 {[%emt 0:00:00]} h5 {[%emt 0:00:00]} 10. O-O-O {[%emt 0:00:00]} Nd7 {[%emt 0:00:00]} 11. Ne2 {[%emt 0:00:00]} Nf8 {[%emt 0:00:00] White has an edge.} 12. Ng3 {[%emt 0:00:00]} g6 {[%emt 0:00:00]} 13. Bh6 {[%emt 0:00:00]} Be6 {[%emt 0:00:00]} 14. Kb1 {[%emt 0:00:00]} b5 {[%emt 0:00:00]} 15. h3 {[%emt 0:00:00]} Bd5 {[%emt 0:00:00]} 16. Rhg1 {[%emt 0:00:00]} Qe7 {[%emt 0:00:00]} 17. Bxf8 {[%emt 0:00:00]} (17. Nf1 $11 {remains equal.}) 17... Kxf8 $17 {[%emt 0:00:00]} 18. Qd2 {[%emt 0:00:00]} (18. Nf1 $15) 18... Kg7 {[%emt 0:00:00] Black is more active.} (18... Bxg3 {simplifies} 19. fxg3 Qe3 20. g4 hxg4 21. hxg4 Kg7) 19. Rde1 {[%emt 0:00:00]} Qc7 $36 {[%emt 0:00:00][%mdl 2048] Black is in control.} 20. Ne4 {[%emt 0:00:00] White does not recover from this.} (20. Nf1 $17 {keeps fighting.}) 20... Bh2 {[%emt 0:00:00] A strong pair of Bishops.} 21. f3 {[%emt 0:00:00]} Bxg1 {[%emt 0:00:00]} 22. Rxg1 {[%emt 0:00:00]} f5 {[%emt 0:00:00]} 23. Nc5 {[%emt 0:00:00]} Qg3 {[%emt 0:00:00] ...Bxf3 is the strong threat.} 24. Rd1 {[%emt 0:00:06]} Re7 {[%emt 0:00:00]} 25. b3 {[%emt 0:01:45]} Qh4 {[%emt 0:00:00]} 26. Bf1 {[%emt 0:02:18]} Rae8 {[%emt 0:00:00]} 27. Nd3 {[%emt 0:01:24]} Rd8 {[%emt 0:00:00]} 28. Nc5 {[%emt 0:02:16]} f4 {[%emt 0:01:17]} 29. c4 {[%emt 0:02:09]} (29. Na6 $142) 29... bxc4 $19 {[%emt 0:00:22]} 30. bxc4 {[%emt 0:00:01]} Be6 {[%emt 0:00:16]} 31. Qc3 {[%emt 0:03:18]} Bf5+ {[%emt 0:01:20]} 32. Kc1 $2 {[%emt 0:01:04]} (32. Bd3) 32... Re3 {[%emt 0:00:34] Black is clearly winning.} 33. Qb2 {[%emt 0:01:01]} Qf6 {[%emt 0:01:46]} 34. Nb3 {[%emt 0:00:26]} Kh7 {[%emt 0:00:53] [#] aiming for ...Rb8.} 35. Qd2 {[%emt 0:00:18]} Qe7 {[%emt 0:01:28]} 36. Kb2 {[%emt 0:00:44] Prevents Qa3+.} Rb8 {[%emt 0:02:28] Threatens to win with ...Qb7.} 37. Qa5 {[%emt 0:00:23]} Qb7 {[%emt 0:00:44][%cal Re3b3] ( -> ...Rxb3+)} 38. Qa4 {[%emt 0:00:39]} Qb6 {[%emt 0:00:21]} 39. Ka1 {[%emt 0:00:22]} Rbe8 {[%emt 0:00:23]} (39... Bc2 $142 40. c5 Qc7) 40. c5 {[%emt 0:00:09]} Qc7 {[%emt 0:01:15] [#] Strongly threatening ...Re1.} 41. Bc4 {[%emt 0:30:52]} Re1 {[%emt 0:34:48]} 42. Rxe1 {[%emt 0:00:00]} Rxe1+ {[%emt 0:00:00]} 43. Kb2 {[%emt 0:00:00]} Rg1 {[%emt 0:00:00]} 44. Ka3 {[%emt 0:00:00]} Rxg2 {[%emt 0:00:00]} 45. d5 {[%emt 0:00:00]} cxd5 {[%emt 0:00:00]} 46. Bxd5 {[%emt 0:00:00]} Bxh3 {[%emt 0:00:00]} 47. Qe8 {[%emt 0:00:00]} Kg7 {[%emt 0:00:00] Weighted Error Value: White=0.92/Black=0.48.  Mistake:       	White=5     	---        Inaccurate:     	White=6     	Black=3      OK:         	White=2     	Black=11     Best:        	---       	Black=1} 0-1

[Event "Mitropa Cup Women 2024"]
[Site "Apolda"]
[Date "2024.02.20"]
[Round "6.6"]
[White "Zimina, Olga"]
[Black "Georgescu, Lena"]
[Result "1-0"]
[ECO "D02"]
[WhiteElo "2291"]
[BlackElo "2268"]
[Annotator "TA"]
[PlyCount "59"]
[EventDate "2024.02.15"]
[EventType "team-tourn"]
[EventCountry "GER"]
[SourceTitle "playchess.com"]
[Source "ChessBase"]
[SourceQuality "1"]
[WhiteTeam "Italy"]
[BlackTeam "Switzerland"]
[WhiteTeamCountry "ITA"]
[BlackTeamCountry "SUI"]
[TimeControl "40/5400+30:1800+30"]

{[%evp 9,59,10,0,6,8,0,23,0,0,0,0,0,0,0,0,-8,17,14,55,0,0,0,0,0,0,0,24,24,29,-29,2,7,43,20,93,97,97,80,134,133,175,193,177,179,198,196,370,375,422,425,520,516]} 1. d4 {[%emt 0:00:03]} Nf6 {[%emt 0:00:07]} 2. Nf3 {[%emt 0:00:11]} d5 {[%emt 0:00:03]} 3. g3 {[%emt 0:00:05]} c5 {[%emt 0:00:05]} 4. Bg2 {[%emt 0:00:06]} cxd4 {[%emt 0:00:04]} 5. O-O {[%emt 0:00:05]} h6 {[%emt 0:00:11]} 6. Bf4 {[%emt 0:00:06]} e6 {[%emt 0:00:42]} 7. Nxd4 {[%emt 0:00:08]} g5 {[%emt 0:00:31]} 8. Bc1 {[%emt 0:00:10][%cal Oc2c4] Weiß hat minimalen Vorteil.} e5 {[%emt 0:02:34]} 9. Nb3 {[%emt 0:05:28][%cal Oc2c4]} Nc6 {[%emt 0:04:56]} 10. c4 {[%emt 0:02:24]} Be6 {[%emt 0:10:10]} 11. cxd5 {[%emt 0:02:37]} Nxd5 {[%emt 0:07:16]} 12. Bd2 {[%emt 0:09:05]} Qd7 {[%emt 0:07:06]} 13. Nc3 {[%emt 0:00:36]} O-O-O {[%emt 0:03:09]} 14. Nxd5 {[%emt 0:07:57]} (14. Qc1 $14) 14... Bxd5 $11 {[%emt 0:00:07]} 15. Be3 {[%emt 0:02:25]} Bxg2 {[%emt 0:13:06]} 16. Qxd7+ {[%emt 0:00:40]} Rxd7 {[%emt 0:00:14]} 17. Kxg2 {[%emt 0:00:06]} Be7 {[%emt 0:02:14]} 18. Rac1 {[%emt 0:01:06]} Kb8 {[%emt 0:00:59]} 19. f4 {[%emt 0:20:22]} (19. Rfd1 $142 Rhd8 20. Rxd7 Rxd7 21. f4) 19... gxf4 {[%emt 0:04:47]} 20. gxf4 {[%emt 0:00:49]} e4 {[%emt 0:02:49]} 21. Rfd1 {[%emt 0:04:46]} Rhd8 {[%emt 0:05:37]} (21... Rxd1 $11 22. Rxd1 f5) 22. Rxd7 $16 {[%emt 0:00:58]} Rxd7 {[%emt 0:00:03] [#]} 23. Nc5 $1 {[%emt 0:08:49]} Rd5 {[%emt 0:16:09]} (23... Bxc5 $142 24. Rxc5 Ne7) 24. Nxe4 {[%emt 0:03:18]} Nd4 {[%emt 0:04:19]} 25. Nc3 {[%emt 0:07:16]} Rd8 {[%emt 0:00:27]} 26. Rd1 {[%emt 0:23:54]} Rg8+ {[%emt 0:00:17]} 27. Kf1 {[%emt 0:00:00]} Ne6 {[%emt 0:02:55] [#]} (27... Nf5 28. Bf2 Rd8 29. Rxd8+ Bxd8) 28. Rd7 $18 {[%emt 0:00:00]} Bd8 {[%emt 0:02:43]} 29. Rxf7 {[%emt 0:00:00]} Bc7 {[%emt 0:00:13]} 30. Nb5 {[%emt 0:00:00] Gewichteter Fehlerwert: Weiß=0.10 (sehr präzise) /Schwarz=0.33.  Fehler:       	Weiß=2     	Schwarz=3     Ungenau:       	---       	Schwarz=4     OK:         	Weiß=12    	Schwarz=5     Bester:       	Weiß=2     	---        Stark:        	Weiß=1     	---} 1-0